bitfinex/quotes_ETHUSD_20250708
["timestamp","ask_amount","ask_price","bid_price","bid_amount"]
[1752007081318,11.1809247,2610.9,2610.8,0.001]
[1752007082612,11.7309247,2610.9,2610.8,0.001]
[1752007082813,12.5508247,2610.9,2610.8,0.001]
[1752007094619,9.8152969,2610.9,2610.8,0.001]
[1752007095808,10.3652969,2610.9,2610.8,0.001]
[1752007096006,11.1917969,2610.9,2610.8,0.001]
[1752007104634,9.8152969,2610.9,2610.8,0.001]
[1752007105509,11.1772969,2610.9,2610.8,0.001]
[1752007105710,12.67802476,2610.9,2610.8,0.001]
[1752007111208,4.0232969,2610.9,2610.8,0.001]
[1752007111743,9.8142969,2610.9,2610.8,0.001]
[1752007123525,9.8132969,2610.9,2610.8,0.001]
[1752007133363,5.9832,2610.9,2610.8,0.001]
[1752007133561,5.9832,2610.9,2610.8,3.8312436]
[1752007133562,0.002,2610.9,2610.8,3.8312436]
[1752007133880,5.792,2610.9,2610.8,1.99033037]
[1752007134166,5.792,2610.9,2610.8,0.001]
[1752007136747,5.791,2610.9,2610.8,0.001]
[1752007140677,0.002,2610.9,2610.8,3.8312436]
[1752007140838,5.791,2610.9,2610.8,4.5998436]
[1752007142049,5.791,2610.9,2610.8,0.7696]
[1752007142361,5.791,2610.9,2610.8,5.99553469]
[1752007142765,0.002,2610.9,2610.8,5.99553469]
[1752007143063,5.791,2610.9,2610.8,5.99553469]
[1752007146643,5.791,2610.9,2610.8,11.25925161]
[1752007146840,5.791,2610.9,2610.8,11.45045161]
[1752007147044,0.002,2610.9,2610.8,11.45045161]
[1752007147274,5.79,2610.9,2610.8,11.45045161]
[1752007151358,0.002,2610.9,2610.8,11.45045161]
[1752007151572,5.79,2610.9,2610.8,11.45045161]
[1752007152058,0.002,2610.9,2610.8,11.45045161]
[1752007156689,0.002,2610.9,2610.8,17.23845161]
[1752007159366,0.002,2610.9,2610.8,8.14349109]
[1752007159566,0.002,2610.9,2610.8,0.1922]
[1752007159902,0.002,2610.9,2610.8,4.0224436]
[1752007163663,0.002,2610.9,2610.8,4.06074603]
[1752007164364,0.002,2610.9,2610.8,4.0224436]
[1752007164688,0.002,2610.9,2610.8,4.06074603]
[1752007165356,0.002,2610.9,2610.8,5.55265984]
[1752007170589,0.002,2610.9,2610.8,0.1922]
[1752007172795,0.002,2610.9,2610.8,0.001]
[1752007173390,3.8320969,2610.9,2610.8,0.001]
[1752007174475,0.002,2610.9,2610.8,0.001]
[1752007177496,5.789,2610.9,2610.8,0.001]
[1752007191821,11.83692309,2610.9,2610.8,0.001]
[1752007192600,11.54937372,2610.9,2610.8,0.2159951]
[1752007192796,12.09937372,2610.9,2610.8,0.2159951]
[1752007192988,18.67647748,2610.9,2610.8,0.2159951]
[1752007193195,12.09937372,2610.9,2610.8,0.2159951]
[1752007193919,12.38492309,2610.9,2610.8,0.2159951]
[1752007194713,12.38492309,2610.9,2610.8,0.001]
[1752007196529,10.3911969,2610.9,2610.8,0.001]
[1752007202623,10.3931969,2610.9,2610.8,0.001]
[1752007205333,10.9431969,2610.9,2610.8,0.001]
[1752007206127,11.14272293,2610.9,2610.8,0.001]
[1752007208833,21.14272293,2610.9,2610.8,0.001]
[1752007210624,27.71982669,2610.9,2610.8,0.001]
[1752007217920,14.80672293,2610.9,2610.8,0.001]
[1752007218133,20.59372293,2610.9,2610.8,0.001]
[1752007218841,21.14372293,2610.9,2610.8,0.001]
[1752007219214,20.9441969,2610.9,2610.8,0.001]
[1752007222651,23.42161455,2610.9,2610.8,0.001]
[1752007223150,23.62115244,2610.9,2610.8,0.001]
[1752007226634,30.1982562,2610.9,2610.8,0.001]
[1752007226938,31.57698169,2610.9,2610.8,0.001]
[1752007227139,30.1982562,2610.9,2610.8,0.001]
[1752007229327,31.57702334,2610.9,2610.8,0.001]
[1752007230260,30.1982562,2610.9,2610.8,0.001]
[1752007233647,23.62115244,2610.9,2610.8,0.001]
[1752007236253,25.00088541,2610.9,2610.8,0.001]
[1752007241062,30.26591586,2610.9,2610.8,0.001]
[1752007242246,27.78849821,2610.9,2610.8,0.001]
[1752007251391,15.96136776,2610.9,2610.8,0.001]
[1752007251688,21.74736776,2610.9,2610.8,0.001]
[1752007252198,0.1932,2610.9,2610.8,0.7535]
[1752007252485,0.1932,2610.9,2610.8,1.74556977]
[1752007252691,0.1932,2610.9,2610.8,0.7535]
[1752007252988,5.9792,2610.9,2610.8,0.7535]
[1752007257691,0.002,2610.9,2610.8,4.5837436]
[1752007257993,0.002,2610.9,2610.8,4.7749436]
[1752007257994,5.787,2610.9,2610.8,4.7749436]
[1752007259564,0.002,2610.9,2610.8,4.7749436]
[1752007261485,0.002,2610.9,2610.8,6.30046943]
[1752007271397,0.002,2610.9,2610.8,6.33877186]
[1752007271597,0.002,2610.9,2610.8,6.30046943]
[1752007274996,0.002,2610.9,2610.8,11.59887223]
[1752007275302,0.002,2610.9,2610.8,11.5605698]
[1752007276404,0.002,2610.9,2610.8,21.5605698]
[1752007276580,0.002,2610.9,2610.8,21.84135335]
[1752007278910,0.002,2610.9,2610.8,23.1551432]
[1752007280405,0.002,2611.2,2611.1,3.82980353]
[1752007280610,0.002,2611.2,2611.1,17.95158379]
[1752007282887,1e-08,2611.2,2611.1,27.95158379]
[1752007283090,1e-08,2611.2,2611.1,33.19158379]
[1752007288022,0.002,2611.8,2611.4,0.7821]
[1752007288194,0.002,2611.8,2611.7,11.1849139]
[1752007288513,0.002,2611.8,2611.7,17.1581139]
[1752007290522,0.002,2611.8,2611.7,27.1581139]
[1752007298238,0.002,2611.8,2611.7,27.1561139]
[1752007298840,1e-08,2611.9,2611.8,14.58097708]
[1752007299140,0.002,2612.3,2611.9,14.58083049]
[1752007299141,1e-08,2612.0,2611.9,14.58083049]
[1752007299436,1e-08,2612.0,2611.9,26.93472071]
[1752007299597,1e-08,2612.0,2611.9,27.48472071]
[1752007299798,1e-08,2612.0,2611.9,31.52481319]
[1752007301631,1e-08,2612.0,2611.9,30.97481319]
[1752007302196,1e-08,2612.0,2611.9,25.19481319]
[1752007302539,1e-08,2612.0,2611.9,30.97481319]
[1752007303829,1e-08,2612.0,2611.9,25.19481319]
[1752007304036,1e-08,2612.0,2611.9,30.97481319]
[1752007307738,1e-08,2612.0,2611.9,23.64772297]
[1752007309337,1e-08,2612.0,2611.9,30.22161319]
[1752007318639,1e-08,2612.0,2611.9,24.44261319]
[1752007318850,1e-08,2612.0,2611.9,30.22161319]
[1752007319049,1e-08,2612.0,2611.9,24.44261319]
[1752007319350,1e-08,2612.0,2611.9,30.22161319]
[1752007319850,1e-08,2612.0,2611.9,24.44261319]
[1752007320239,1e-08,2612.0,2611.9,30.22161319]
[1752007320551,1e-08,2612.0,2611.9,24.44261319]
[1752007320751,1e-08,2612.0,2611.9,30.22161319]
[1752007324662,0.75410001,2612.0,2611.9,0.1912]
[1752007324834,0.75410001,2612.0,2611.7,13.82890626]
[1752007325037,0.75410001,2612.0,2611.8,0.1912]
[1752007325426,0.7541,2611.8,2611.5,0.001]
[1752007325625,0.7541,2611.8,2611.6,0.1912]
[1752007326862,0.7541,2611.8,2611.6,4.02022472]
[1752007328454,0.7541,2611.8,2611.7,3.82892368]
[1752007330934,0.7541,2611.8,2611.6,4.02018641]
[1752007331542,0.7541,2611.8,2611.6,4.02118641]
[1752007333352,0.7541,2611.8,2611.7,3.82892368]
[1752007333557,0.7541,2611.8,2611.6,4.0211896]
[1752007334347,0.7541,2611.8,2611.7,3.82892368]
[1752007337439,1e-08,2612.0,2611.8,3.8287693]
[1752007339254,1e-08,2612.0,2611.8,3.82877708]
[1752007339580,1e-08,2612.0,2611.9,3.82863049]
[1752007339747,1e-08,2612.0,2611.8,3.82869165]
[1752007342676,1e-08,2612.0,2611.9,3.82863049]
[1752007343177,1e-08,2612.0,2611.8,3.82871547]
[1752007345302,1e-08,2612.0,2611.9,3.82863049]
[1752007347023,1e-08,2612.0,2611.8,3.82870693]
[1752007350311,1e-08,2612.0,2611.7,3.82883251]
[1752007353225,1e-08,2612.0,2611.8,0.001]
[1752007354230,1e-08,2612.0,2611.8,3.82977335]
[1752007354526,1e-08,2612.0,2611.8,0.001]
[1752007354692,1e-08,2612.0,2611.8,0.4032107]
[1752007355022,1e-08,2612.0,2611.9,3.82863049]
[1752007356188,1e-08,2612.0,2611.8,3.82970553]
[1752007362922,1e-08,2612.0,2611.9,3.82863049]
[1752007364032,5.77900001,2612.0,2611.9,3.82863049]
[1752007367433,5.77900001,2612.0,2611.8,3.82968898]
[1752007377317,5.77900001,2612.0,2611.9,3.82863049]
[1752007379147,5.77900001,2612.0,2611.8,3.82969376]
[1752007386862,5.77900001,2612.0,2611.8,0.001]
[1752007387161,5.77900001,2612.0,2611.8,3.82977463]
[1752007387763,5.77900001,2612.0,2611.8,0.001]
[1752007388735,5.77900001,2612.0,2611.8,3.82976988]
[1752007389234,5.77900001,2612.0,2611.9,3.82863049]
[1752007389465,5.77900001,2612.0,2611.8,3.82968156]
[1752007390064,5.77900001,2612.0,2611.8,0.001]
[1752007390964,5.77900001,2612.0,2611.8,3.82976855]
[1752007392147,5.77900001,2612.0,2611.9,3.82863049]
[1752007392348,5.77900001,2612.0,2611.8,3.82971309]
[1752007392969,5.77900001,2612.0,2611.8,0.001]
[1752007395379,5.77900001,2612.0,2611.8,3.82977517]
[1752007397992,5.77900001,2612.0,2611.8,0.001]
[1752007399671,3.82863049,2611.9,2611.8,0.001]
[1752007399872,1.0028,2611.9,2611.8,0.001]
[1752007400790,10.6690575,2612.0,2611.8,0.001]
[1752007400791,1e-08,2612.0,2611.8,0.001]
[1752007400992,5.778,2611.9,2611.8,0.001]
[1752007404168,1e-08,2612.0,2611.8,0.001]
[1752007404368,5.778,2611.9,2611.8,0.001]
[1752007407404,1e-08,2612.0,2611.8,0.001]
[1752007407585,5.778,2611.9,2611.8,3.82971088]
[1752007408984,5.778,2611.9,2611.8,0.001]
[1752007413607,10.43943049,2611.9,2611.8,0.001]
[1752007413909,12.05742517,2611.9,2611.8,0.001]
[1752007418413,2.45079468,2611.9,2611.8,0.001]
[1752007418712,8.22779468,2611.9,2611.8,0.001]
[1752007418901,12.05642517,2611.9,2611.8,0.001]
[1752007419302,12.60642517,2611.9,2611.8,0.001]
[1752007428040,12.80621598,2611.9,2611.8,0.001]
[1752007429335,2.65058549,2611.9,2611.8,0.001]
[1752007429538,10.8304213,2611.9,2611.8,0.001]
[1752007429909,9.9976213,2611.9,2611.8,0.001]
[1752007431717,0.39099081,2611.9,2611.8,0.001]
[1752007431911,5.9692,2611.9,2611.8,0.001]
[1752007432239,5.9692,2611.9,2611.8,3.82977708]
[1752007438856,5.9692,2611.9,2611.8,0.001]
[1752007439956,0.1912,2611.9,2611.8,3.82977708]
[1752007440252,5.9682,2611.9,2611.8,0.001]
[1752007446867,9.79683049,2611.9,2611.8,0.001]
[1752007447046,11.94116195,2611.9,2611.8,0.001]
[1752007448362,11.94116195,2611.9,2611.5,0.1912]
[1752007448565,11.94116195,2611.9,2611.4,3.10361729]
[1752007448762,10.57863049,2611.9,2611.3,0.62792391]
[1752007448967,10.57863049,2611.9,2611.4,0.1912]
[1752007448968,3.82886878,2611.8,2611.4,0.1912]
[1752007449166,5.777,2611.7,2611.4,4.02056223]
[1752007449341,5.777,2611.7,2611.4,4.01976223]
[1752007450064,9.60593084,2611.7,2611.4,0.1904]
[1752007450266,8.6861,2611.7,2611.5,0.3587795]
[1752007450569,8.68609284,2611.7,2611.6,0.3587795]
[1752007453066,10.03488299,2611.7,2611.6,0.3587795]
[1752007453285,10.84458299,2611.7,2611.6,0.3587795]
[1752007459078,10.03488299,2611.7,2611.6,0.3587795]
[1752007460965,10.03688299,2611.7,2611.6,0.3587795]
[1752007461365,10.95671383,2611.7,2611.6,0.3587795]
[1752007466191,11.78341383,2611.7,2611.6,0.3587795]
[1752007467874,11.78341383,2611.7,2611.5,0.001]
[1752007467875,4.7871703,2611.6,2611.5,0.001]
[1752007468081,6.55584182,2611.6,2611.5,0.001]
[1752007471203,6.55584182,2611.6,2610.8,0.001]
[1752007471204,3.8300969,2610.9,2610.8,0.001]
[1752007471398,9.6070969,2610.9,2610.8,0.001]
[1752007472103,10.4126969,2610.9,2610.8,0.001]
[1752007476893,10.4136969,2610.9,2610.8,0.001]
[1752007477215,11.76248705,2610.9,2610.8,0.001]
[1752007478818,5.98448705,2610.9,2610.8,0.001]
[1752007479017,11.76248705,2610.9,2610.8,0.001]
[1752007481821,5.98448705,2610.9,2610.8,0.001]
[1752007482025,9.6080969,2610.9,2610.8,0.001]
[1752007483026,3.8300969,2610.9,2610.8,0.001]
[1752007483395,3.82991564,2611.1,2610.8,0.001]
[1752007483596,9.60807759,2611.0,2610.8,0.001]
[1752007483797,5.778,2610.9,2610.8,0.001]
[1752007484010,3.83007759,2611.0,2610.8,0.001]
[1752007484218,5.778,2610.9,2610.8,0.001]
[1752007484811,9.6080969,2610.9,2610.8,0.001]
[1752007493015,5.778,2610.9,2610.8,0.001]
[1752007495346,9.6080969,2610.9,2610.8,0.001]
[1752007495553,3.8300969,2610.9,2610.8,0.001]
[1752007495726,9.6080969,2610.9,2610.8,0.001]
[1752007497514,5.778,2610.9,2610.8,0.001]
[1752007500250,9.6080969,2610.9,2610.8,0.001]
[1752007512657,11.04790483,2610.9,2610.8,0.001]
[1752007514480,11.87520483,2610.9,2610.8,0.001]
[1752007514976,18.45027954,2610.9,2610.8,0.001]
[1752007515354,11.87520483,2610.9,2610.8,0.001]
[1752007516584,5.26990483,2610.9,2610.8,0.001]
[1752007516762,9.6080969,2610.9,2610.8,0.001]
[1752007525089,9.6070969,2610.9,2610.8,0.001]
[1752007525291,3.8300969,2610.9,2610.8,0.001]
[1752007525460,9.6070969,2610.9,2610.8,0.001]
[1752007543214,4.02124164,2611.0,2610.8,0.788]
[1752007543717,5.777,2610.9,2610.8,0.001]
[1752007544080,10.3587969,2610.9,2610.8,0.001]
[1752007544317,11.79679455,2610.9,2610.8,0.001]
[1752007544612,18.37186926,2610.9,2610.8,0.001]
[1752007545215,28.57173296,2610.9,2610.8,0.001]
[1752007545902,28.57173296,2610.9,2610.7,0.001]
[1752007545903,15.1887436,2610.8,2610.7,1e-08]
[1752007546817,16.56557283,2610.8,2610.7,1e-08]
[1752007547121,16.56557283,2610.8,2610.0,0.001]
[1752007547122,4.60002405,2610.2,2610.0,0.001]
[1752007547330,16.95309876,2610.2,2610.0,0.001]
[1752007547880,16.18419876,2610.2,2610.0,0.001]
[1752007548122,17.00049876,2610.2,2610.0,0.001]
[1752007548294,18.43849641,2610.2,2610.0,0.001]
[1752007549187,28.98849641,2610.2,2610.0,0.001]
[1752007549387,5.38877083,2610.1,2610.0,0.001]
[1752007556738,13.83127083,2610.1,2610.0,0.001]
[1752007556926,22.12203485,2610.1,2610.0,0.001]
[1752007561152,22.12303485,2610.1,2610.0,0.001]
[1752007564431,16.34203485,2610.1,2610.0,0.001]
[1752007564774,22.12203485,2610.1,2610.0,0.001]
[1752007565431,22.3219705,2610.1,2610.0,0.001]
[1752007568857,22.3239705,2610.1,2610.0,0.001]
[1752007571495,16.5439705,2610.1,2610.0,0.001]
[1752007571668,22.3239705,2610.1,2610.0,0.001]
[1752007575172,22.8739705,2610.1,2610.0,0.001]
[1752007575388,24.24772102,2610.1,2610.0,0.001]
[1752007576282,18.46772102,2610.1,2610.0,0.001]
[1752007576451,24.25372102,2610.1,2610.0,0.001]
[1752007577471,25.97082243,2610.1,2610.0,0.001]
[1752007577676,24.25372102,2610.1,2610.0,0.001]
[1752007578055,30.82879573,2610.1,2610.0,0.001]
[1752007578984,25.04279573,2610.1,2610.0,0.001]
[1752007579376,30.82979573,2610.1,2610.0,0.001]
[1752007588798,30.82979573,2610.1,2610.0,1e-08]
[1752007589002,32.54689714,2610.1,2610.0,1e-08]
[1752007589199,30.82979573,2610.1,2610.0,1e-08]
[1752007593177,32.54689714,2610.1,2610.0,1e-08]
[1752007595628,30.82879573,2610.1,2610.0,1e-08]
[1752007597287,32.54589714,2610.1,2610.0,1e-08]
[1752007598115,29.45504521,2610.1,2610.0,1e-08]
[1752007598312,32.55378985,2610.1,2610.0,1e-08]
[1752007601825,26.76778985,2610.1,2610.0,1e-08]
[1752007602015,17.13195112,2610.1,2610.0,1e-08]
[1752007602230,21.19642632,2610.1,2610.0,0.76030001]
[1752007604887,19.81920648,2610.1,2610.0,0.76030001]
[1752007605994,19.81820648,2610.1,2610.0,0.76030001]
[1752007606218,13.83327083,2610.1,2610.0,0.76030001]
[1752007606412,19.61827083,2610.1,2610.0,0.76030001]
[1752007613933,19.61827083,2610.1,2610.0,1e-08]
[1752007614232,26.74334554,2610.1,2610.0,1e-08]
[1752007614433,27.74828377,2610.1,2610.0,1e-08]
[1752007614604,29.12416341,2610.1,2610.0,1e-08]
[1752007624845,28.31716341,2610.1,2610.0,1e-08]
[1752007625233,21.98416341,2610.1,2610.0,1e-08]
[1752007625424,27.76716341,2610.1,2610.0,1e-08]
[1752007625759,28.31816341,2610.1,2610.0,1e-08]
[1752007629952,15.4090887,2610.1,2610.0,1e-08]
[1752007630356,21.1920887,2610.1,2610.0,1e-08]
[1752007630790,15.4090887,2610.1,2610.0,1e-08]
[1752007630960,21.1920887,2610.1,2610.0,1e-08]
[1752007631864,19.81620906,2610.1,2610.0,1e-08]
[1752007633086,19.81520906,2610.1,2610.0,1e-08]
[1752007634762,14.03320906,2610.1,2610.0,1e-08]
[1752007634958,19.81520906,2610.1,2610.0,1e-08]
[1752007635563,14.03320906,2610.1,2610.0,1e-08]
[1752007635770,19.81520906,2610.1,2610.0,1e-08]
[1752007636160,14.03320906,2610.1,2610.0,1e-08]
[1752007636364,9.61427083,2610.1,2610.0,1e-08]
[1752007646078,20.16427083,2610.1,2610.0,1e-08]
[1752007646279,21.17537293,2610.1,2610.0,1e-08]
[1752007647767,22.55146517,2610.1,2610.0,1e-08]
[1752007650365,22.55156721,2610.1,2610.0,1e-08]
[1752007661786,24.27181006,2610.1,2610.0,1e-08]
[1752007662015,21.17537293,2610.1,2610.0,1e-08]
[1752007662319,24.27354299,2610.1,2610.0,1e-08]
[1752007664224,3.83229861,2609.4,2609.3,1e-08]
[1752007664448,27.55787332,2609.4,2609.3,1e-08]
[1752007666514,27.75775278,2609.4,2609.3,1e-08]
[1752007668204,14.58217807,2609.4,2609.3,1e-08]
[1752007668410,20.37317807,2609.4,2609.3,1e-08]
[1752007669122,19.82217807,2609.4,2609.3,1e-08]
[1752007673546,14.03217807,2609.4,2609.3,1e-08]
[1752007673846,13.83229861,2609.4,2609.3,0.78010001]
[1752007674030,19.62429861,2609.4,2609.3,0.78010001]
[1752007674236,15.792,2609.4,2609.3,0.78010001]
[1752007675645,5.792,2609.4,2609.3,0.78010001]
[1752007675847,5.9842,2609.4,2609.3,1.24138159]
[1752007676047,0.1912,2609.4,2609.3,1.24138159]
[1752007676221,5.9832,2609.4,2609.3,1.24138159]
[1752007676551,5.9852,2609.4,2609.3,1.24138159]
[1752007678829,5.9862,2609.4,2609.3,1.24138159]
[1752007679921,5.9862,2609.4,2609.3,5.07382707]
[1752007680334,5.9862,2609.4,2609.3,1.24138159]
[1752007681250,5.9862,2609.4,2609.3,5.07382707]
[1752007681648,5.794,2609.4,2609.3,5.07382707]
[1752007681851,5.794,2609.4,2609.3,5.26502707]
[1752007685553,0.002,2609.4,2609.3,5.26502707]
[1752007685847,5.793,2609.4,2609.3,5.26502707]
[1752007689552,5.793,2609.4,2609.3,1.43258159]
[1752007689757,5.793,2609.4,2609.3,0.97130001]
[1752007689953,9.62529861,2609.4,2609.3,1e-08]
[1752007697260,9.82520483,2609.4,2609.3,1e-08]
[1752007697560,11.13990483,2609.4,2609.3,1e-08]
[1752007698467,21.13990483,2609.4,2609.3,1e-08]
[1752007698763,22.51599005,2609.4,2609.3,1e-08]
[1752007703477,21.13990483,2609.4,2609.3,1e-08]
[1752007704039,22.51474261,2609.4,2609.3,1e-08]
[1752007704341,21.13990483,2609.4,2609.3,1e-08]
[1752007712283,22.51371793,2609.4,2609.3,1e-08]
[1752007715682,30.44371793,2609.4,2609.3,1e-08]
[1752007725667,39.65271793,2609.4,2609.3,1e-08]
[1752007728180,33.86171793,2609.4,2609.3,1e-08]
[1752007728394,38.88401793,2609.4,2609.3,1e-08]
[1752007734416,45.45909264,2609.4,2609.3,1e-08]
[1752007734774,46.21939264,2609.4,2609.3,1e-08]
[1752007736607,47.93946579,2609.4,2609.3,1e-08]
[1752007737907,46.21939264,2609.4,2609.3,1e-08]
[1752007742601,48.50886119,2609.4,2609.3,1e-08]
[1752007743209,46.21939264,2609.4,2609.3,1e-08]
[1752007743696,50.21939264,2609.4,2609.3,1e-08]
[1752007745301,46.21939264,2609.4,2609.3,1e-08]
[1752007750330,47.94266935,2609.4,2609.3,1e-08]
[1752007753708,42.15566935,2609.4,2609.3,1e-08]
[1752007754012,47.94066935,2609.4,2609.3,1e-08]
[1752007759144,46.21739264,2609.4,2609.3,1e-08]
[1752007761218,50.21739264,2609.4,2609.3,1e-08]
[1752007765324,52.50686119,2609.4,2609.3,1e-08]
[1752007765951,13.83288616,2609.0,2608.9,1e-08]
[1752007766126,27.56677397,2609.0,2608.9,1e-08]
[1752007766539,27.76659696,2609.0,2608.9,1e-08]
[1752007768958,26.46488182,2609.0,2608.9,1e-08]
[1752007770380,26.46488182,2609.0,2608.6,1e-08]
[1752007770381,4.38332694,2608.7,2608.6,1e-08]
[1752007770665,15.44168651,2608.7,2608.6,1e-08]
[1752007770830,16.82050201,2608.7,2608.6,1e-08]
[1752007771459,25.44168651,2608.7,2608.6,1e-08]
[1752007771761,26.82019129,2608.7,2608.6,1e-08]
[1752007772763,26.82019129,2608.7,2607.7,0.1912]
[1752007772764,3.83439105,2608.0,2607.7,0.16284321]
[1752007772932,5.785,2607.9,2607.7,1.0899566]
[1752007773128,5.785,2607.9,2607.7,0.16284321]
[1752007775775,5.785,2607.9,2607.8,0.7969]
[1752007777580,5.785,2607.9,2607.8,3.83464989]
[1752007777761,5.785,2607.9,2607.8,4.60714989]
[1752007778140,5.785,2607.9,2607.8,0.7725]
[1752007778574,5.785,2607.9,2607.8,1.24951566]
[1752007779776,5.785,2607.9,2607.8,5.08416555]
[1752007780156,5.785,2607.9,2607.8,1.24951566]
[1752007780679,5.785,2607.9,2607.8,5.08416555]
[1752007788273,5.786,2607.9,2607.8,5.08416555]
[1752007794580,5.786,2607.9,2607.8,1.24951566]
[1752007795964,5.786,2607.9,2607.8,0.7725]
[1752007798599,5.785,2607.9,2607.8,6.04663974]
[1752007799294,5.785,2607.9,2607.8,0.7725]
[1752007805134,9.61950285,2607.9,2607.8,0.7725]
[1752007805509,9.62150285,2607.9,2607.8,0.7725]
[1752007806153,3.83464989,2607.8,2607.7,0.16284321]
[1752007806348,3.83479694,2607.7,2607.6,0.001]
[1752007806631,9.61979694,2607.7,2607.6,0.001]
[1752007808932,9.81099694,2607.7,2607.6,0.001]
[1752007809329,10.62459694,2607.7,2607.6,0.001]
[1752007809532,12.07072201,2607.7,2607.6,0.001]
[1752007813006,6.28572201,2607.7,2607.6,0.001]
[1752007813219,5.47212201,2607.7,2607.6,0.001]
[1752007813447,11.25812201,2607.7,2607.6,0.001]
[1752007813803,5.47212201,2607.7,2607.6,0.001]
[1752007814134,0.002,2607.9,2607.8,0.8251]
[1752007814322,0.002,2607.9,2607.8,4.69809638]
[1752007814743,5.788,2607.9,2607.8,4.69809638]
[1752007814946,5.788,2607.9,2607.8,4.65974989]
[1752007815953,0.002,2607.9,2607.8,4.65974989]
[1752007816116,0.002,2607.9,2607.8,6.4200312]
[1752007820357,0.002,2607.9,2607.8,16.4200312]
[1752007820518,0.002,2607.9,2607.8,16.38168471]
[1752007821360,0.25,2608.6,2608.4,4.60786782]
[1752007821556,0.25,2608.6,2608.5,3.83362085]
[1752007821854,6.035,2608.6,2608.4,4.60778463]
[1752007822765,6.035,2608.6,2608.5,3.83362085]
[1752007822968,6.035,2608.6,2608.5,4.02482085]
[1752007824742,6.035,2608.6,2608.2,4.61151525]
[1752007824949,6.035,2608.6,2608.3,3.87218769]
[1752007824950,6.2262,2608.6,2608.3,3.87218769]
[1752007825675,6.2262,2608.6,2608.3,0.03833914]
[1752007826139,6.2262,2608.6,2608.3,3.87225358]
[1752007826571,6.2262,2608.6,2608.5,3.83362085]
[1752007826572,0.25,2608.6,2608.5,3.83362085]
[1752007826736,6.034,2608.6,2608.5,4.06315705]
[1752007826936,6.034,2608.6,2608.5,4.02482085]
[1752007827276,0.25,2608.6,2608.5,4.02482085]
[1752007827573,6.036,2608.6,2608.5,4.06315705]
[1752007827762,6.036,2608.6,2608.5,4.90126437]
[1752007829676,6.036,2608.6,2608.5,1.06764352]
[1752007830101,0.25,2608.6,2608.5,4.90126437]
[1752007830252,6.035,2608.6,2608.5,5.70140057]
[1752007830451,6.035,2608.6,2608.5,5.66306437]
[1752007832679,0.25,2608.6,2608.5,5.66306437]
[1752007832882,6.034,2608.6,2608.5,5.70140057]
[1752007833052,6.034,2608.6,2608.5,5.66306437]
[1752007834294,0.25,2608.6,2608.5,5.66306437]
[1752007834471,0.25,2608.6,2608.5,5.70140057]
[1752007842983,0.25,2608.6,2608.5,15.70140057]
[1752007843300,0.25,2608.6,2608.5,15.66306437]
[1752007849716,0.252,2608.6,2608.5,15.66306437]
[1752007864048,0.252,2608.6,2608.5,21.44506437]
[1752007865546,0.252,2608.6,2608.5,15.66306437]
[1752007865843,0.252,2608.6,2608.5,21.44506437]
[1752007880876,0.252,2608.6,2608.5,26.71451448]
[1752007884468,0.252,2608.6,2608.5,26.90231264]
[1752007884880,0.252,2608.6,2608.5,36.77474993]
[1752007885977,0.252,2608.6,2608.5,31.50529982]
[1752007886885,0.252,2608.6,2608.5,32.82083893]
[1752007887976,0.252,2608.6,2608.5,28.21785175]
[1752007889584,0.252,2608.6,2608.5,32.81711679]
[1752007889878,0.252,2608.6,2608.5,28.21785175]
[1752007890956,1e-08,2608.6,2608.5,28.21785175]
[1752007892695,1e-08,2608.6,2608.5,32.81586191]
[1752007892899,1e-08,2608.6,2608.5,32.62706375]
[1752007896397,1e-08,2608.6,2608.5,32.81602326]
[1752007899407,1e-08,2608.6,2608.5,28.2180131]
[1752007902606,1e-08,2608.6,2608.5,28.7680131]
[1752007907806,1e-08,2608.6,2608.5,22.9870131]
[1752007908014,1e-08,2608.6,2608.5,28.7680131]
[1752007908611,1e-08,2608.6,2608.5,22.9870131]
[1752007908789,1e-08,2608.6,2608.5,28.2180131]
[1752007910407,1e-08,2608.6,2608.5,22.4370131]
[1752007910711,1e-08,2608.6,2608.5,28.2170131]
[1752007912012,1e-08,2608.6,2608.5,22.4370131]
[1752007912220,1e-08,2608.6,2608.5,28.2170131]
[1752007913720,1e-08,2608.6,2608.5,27.4552131]
[1752007914922,1e-08,2608.6,2608.5,27.4562131]
[1752007916021,1e-08,2608.6,2608.5,14.90226437]
[1752007916226,1e-08,2608.6,2608.5,21.48725359]
[1752007916423,1e-08,2608.6,2608.5,11.48725359]
[1752007916613,1e-08,2608.6,2608.5,31.86496609]
[1752007916792,1e-08,2608.6,2608.5,30.55011472]
[1752007916998,1e-08,2608.6,2608.5,24.77011472]
[1752007917198,1e-08,2608.6,2608.5,9.2959587]
[1752007917398,1e-08,2608.6,2608.5,25.0759587]
[1752007918807,1e-08,2608.6,2608.5,19.80582085]
[1752007920226,1e-08,2608.6,2608.5,14.02582085]
[1752007920429,1e-08,2608.6,2608.5,19.80682085]
[1752007921331,1e-08,2608.6,2608.5,14.02582085]
[1752007921521,1e-08,2608.6,2608.5,19.80682085]
[1752007924729,1e-08,2608.6,2608.5,0.1922]
[1752007924730,0.79530001,2608.6,2608.5,0.1922]
[1752007928835,0.79530001,2608.6,2608.5,4.06415705]
[1752007929133,1e-08,2608.6,2608.5,5.5127581]
[1752007930935,1e-08,2608.6,2608.5,15.5127581]
[1752007931141,1e-08,2608.6,2608.5,15.4744219]
[1752007954223,0.77150001,2608.6,2608.5,14.02582085]
[1752007954510,0.77150001,2608.6,2608.5,19.81082085]
[1752007955015,0.77150001,2608.6,2608.5,25.08148734]
[1752007955614,0.77150001,2608.6,2608.5,19.29648734]
[1752007955820,0.77150001,2608.6,2608.5,25.08348734]